bitfinex/quotes_SOLUSD_20230702
["timestamp","ask_amount","ask_price","bid_price","bid_amount"]
[1688263208361,22.704,18.631,18.619,20.0]
[1688263208550,22.704,18.631,18.613,20.0]
[1688263208863,49.81016992,18.63,18.61,58.514]
[1688263209051,22.712,18.624,18.615,22.723]
[1688263209364,22.712,18.624,18.612,22.726]
[1688263211763,58.467,18.628,18.612,81.236]
[1688263211764,22.712,18.625,18.612,81.236]
[1688263211948,96.8577,18.629,18.612,81.236]
[1688263212654,58.455,18.63,18.613,55.0]
[1688263212965,22.711,18.625,18.618,22.719]
[1688263213165,22.711,18.625,18.619,77.718]
[1688263213354,22.711,18.625,18.619,22.718]
[1688263213556,22.711,18.625,18.617,22.72]
[1688263213754,22.711,18.625,18.618,77.719]
[1688263213961,22.711,18.625,18.618,22.719]
[1688263214163,26.57390919,18.631,18.618,22.719]
[1688263214464,22.706,18.63,18.623,22.713]
[1688263214651,91.2323,18.638,18.623,22.713]
[1688263214652,58.435,18.636,18.623,22.713]
[1688263215260,22.702,18.633,18.623,22.713]
[1688263216266,129.34,18.633,18.62,22.716]
[1688263216571,129.34,18.633,18.621,75.0]
[1688263217563,129.34,18.633,18.621,97.715]
[1688263218068,136.77566599,18.633,18.621,20.0]
[1688263218469,55.0,18.632,18.621,42.715]
[1688263218655,22.706,18.629,18.621,42.715]
[1688263219549,22.706,18.629,18.619,22.717]
[1688263219969,22.706,18.629,18.617,22.72]
[1688263220169,55.0,18.628,18.616,22.722]
[1688263220468,22.712,18.625,18.616,22.722]
[1688263221978,58.449,18.632,18.616,33.55919922]
[1688263222156,22.711,18.626,18.616,22.722]
[1688263224966,22.711,18.626,18.614,58.502]
[1688263224967,22.711,18.626,18.619,22.717]
[1688263226076,22.711,18.626,18.617,55.0]
[1688263226077,22.711,18.626,18.61,61.34925338]
[1688263226258,22.711,18.626,18.611,20.0]
[1688263227370,22.711,18.626,18.612,55.0]
[1688263227874,22.711,18.626,18.619,22.718]
[1688263228763,22.708,18.628,18.619,22.718]
[1688263228967,22.702,18.633,18.62,109.2]
[1688263229277,22.702,18.633,18.623,22.712]
[1688263229599,22.702,18.633,18.624,55.0]
[1688263229767,22.702,18.633,18.626,22.709]
[1688263230274,22.699,18.635,18.627,55.0]
[1688263230469,96.8431,18.639,18.627,55.0]
[1688263230470,22.698,18.636,18.629,22.706]
[1688263230769,22.698,18.636,18.631,22.703]
[1688263230972,22.698,18.636,18.627,55.0]
[1688263231764,22.698,18.636,18.627,77.708]
[1688263233177,22.698,18.636,18.627,22.708]
[1688263234076,22.698,18.636,18.623,10.83719922]
[1688263234374,22.698,18.636,18.625,22.71]
[1688263235764,22.698,18.636,18.62,105.57975056]
[1688263235965,55.0,18.635,18.624,22.712]
[1688263236169,22.703,18.632,18.624,22.712]
[1688263240068,22.703,18.632,18.623,22.713]
[1688263241467,22.703,18.632,18.621,58.48]
[1688263241468,22.701,18.633,18.627,22.708]
[1688263247780,55.0,18.64,18.627,22.708]
[1688263247975,22.696,18.638,18.627,22.708]
[1688263248285,22.696,18.638,18.628,55.0]
[1688263248583,22.696,18.638,18.63,22.704]
[1688263249276,65.85366599,18.642,18.63,22.704]
[1688263249277,55.0,18.642,18.63,22.704]
[1688263249489,98.9617,18.649,18.631,75.0]
[1688263249783,98.9617,18.649,18.637,22.696]
[1688263249986,58.389,18.651,18.637,22.696]
[1688263250684,22.684,18.647,18.637,22.696]
[1688263253973,22.684,18.647,18.636,22.697]
[1688263256483,22.684,18.647,18.637,55.0]
[1688263256791,22.684,18.647,18.64,22.693]
[1688263257689,22.684,18.647,18.637,77.695]
[1688263257874,129.242,18.647,18.631,42.703]
[1688263258074,69.56277747,18.646,18.631,42.703]
[1688263258277,22.691,18.642,18.631,42.703]
[1688263259277,22.691,18.642,18.632,55.0]
[1688263259577,22.691,18.642,18.634,22.699]
[1688263261091,22.688,18.644,18.634,22.699]
[1688263261276,22.688,18.644,18.635,55.0]
[1688263261479,22.688,18.644,18.637,22.695]
[1688263262096,22.688,18.644,18.635,55.0]
[1688263262471,22.688,18.644,18.631,20.0]
[1688263262697,22.688,18.644,18.626,26.26947309]
[1688263262878,34.29,18.64,18.623,22.713]
[1688263263194,81.137,18.635,18.621,22.715]
[1688263263385,20.0,18.634,18.613,107.457228]
[1688263263687,187.838,18.628,18.609,22.73]
[1688263263876,32.10806136,18.627,18.609,22.73]
[1688263264078,81.198,18.621,18.609,22.73]
[1688263264274,22.716,18.621,18.609,22.73]
[1688263264494,22.716,18.621,18.613,22.725]
[1688263265077,22.716,18.621,18.607,58.523]
[1688263265078,81.198,18.621,18.604,58.534]
[1688263265286,15.56648274,18.62,18.604,58.534]
[1688263265505,15.56648274,18.62,18.607,22.733]
[1688263265792,22.722,18.617,18.607,22.733]
[1688263266699,22.722,18.617,18.609,22.73]
[1688263267390,22.722,18.617,18.602,10.83719922]
[1688263267594,22.722,18.617,18.596,58.56]
[1688263267798,65.92566599,18.619,18.597,42.744]
[1688263267799,188.01,18.611,18.597,42.744]
[1688263268703,81.244,18.611,18.597,42.744]
[1688263268997,22.729,18.611,18.597,53.58119922]
[1688263269402,22.729,18.611,18.601,22.739]
[1688263269599,22.729,18.611,18.604,22.736]
[1688263271991,22.729,18.611,18.597,10.83719922]
[1688263272204,22.729,18.611,18.599,22.743]
[1688263272404,22.729,18.611,18.597,22.744]
[1688263272792,55.0,18.61,18.595,22.747]
[1688263272995,81.266,18.606,18.59,69.41619922]
[1688263273301,81.266,18.606,18.594,22.749]
[1688263274107,22.735,18.606,18.594,22.749]
[1688263274288,22.735,18.606,18.595,55.0]
[1688263274489,22.735,18.606,18.598,22.744]
[1688263276105,22.749,18.611,18.599,55.0]
[1688263276292,22.732,18.608,18.602,22.738]
[1688263277593,22.73,18.61,18.602,22.738]
[1688263278707,22.725,18.614,18.602,22.738]
[1688263279008,22.725,18.614,18.603,55.0]
[1688263279197,22.725,18.614,18.606,22.734]
[1688263282914,22.725,18.614,18.6,34.18]
[1688263283118,75.0,18.613,18.592,58.57]
[1688263283415,75.0,18.613,18.597,22.744]
[1688263283416,22.733,18.607,18.597,22.744]
[1688263285200,22.732,18.608,18.597,81.301]
[1688263285394,22.732,18.608,18.597,22.744]
[1688263285703,97.6525,18.612,18.597,81.301]
[1688263285907,22.73,18.61,18.598,55.0]
[1688263286219,97.6525,18.612,18.598,55.0]
[1688263286220,22.728,18.612,18.601,22.739]
[1688263286408,22.728,18.612,18.605,22.735]
[1688263287417,22.728,18.612,18.602,20.0]
[1688263289418,22.728,18.612,18.602,42.738]
[1688263290929,22.728,18.612,18.598,55.0]
[1688263291221,22.728,18.612,18.595,26.61006812]
[1688263291421,81.269,18.605,18.58,68.15]
[1688263291611,81.269,18.605,18.595,22.747]
[1688263291927,81.269,18.605,18.585,10.83719922]
[1688263292121,22.736,18.605,18.594,22.749]
[1688263292417,22.735,18.605,18.594,22.749]
[1688263292806,22.735,18.605,18.595,55.0]
[1688263293020,22.735,18.605,18.597,22.745]
[1688263294333,22.735,18.605,18.59,34.39]
[1688263294513,22.735,18.605,18.591,20.0]
[1688263294717,22.735,18.605,18.594,22.749]
[1688263295231,22.735,18.605,18.589,58.582]
[1688263295232,129.534,18.605,18.589,22.754]
[1688263295413,75.0,18.604,18.589,22.754]
[1688263295616,22.742,18.6,18.589,22.754]
[1688263296418,22.742,18.6,18.59,20.0]
[1688263296725,22.742,18.6,18.593,22.75]
[1688263296925,22.742,18.6,18.594,55.0]
[1688263297322,22.742,18.6,18.59,20.0]
[1688263297323,22.742,18.6,18.591,22.752]
[1688263297517,22.742,18.6,18.592,20.0]
[1688263298326,22.742,18.6,18.592,42.751]
[1688263298805,22.742,18.6,18.594,22.749]
[1688263299615,97.2877,18.608,18.594,22.749]
[1688263299818,22.739,18.602,18.594,22.749]
[1688263300011,22.736,18.605,18.596,22.746]
[1688263300224,22.736,18.605,18.599,22.742]
[1688263300426,7.43790906,18.613,18.599,22.742]
[1688263300608,22.733,18.608,18.601,22.739]
[1688263300811,22.733,18.608,18.595,55.0]
[1688263301911,22.733,18.608,18.599,22.743]
[1688263302114,22.733,18.608,18.598,22.744]
[1688263303619,58.498,18.616,18.599,55.0]
[1688263303924,22.727,18.613,18.603,22.737]
[1688263304830,22.727,18.613,18.599,22.742]
[1688263305138,27.43790906,18.612,18.599,22.742]
[1688263305331,22.732,18.609,18.598,22.744]
[1688263306917,22.732,18.609,18.599,55.0]
[1688263307132,22.732,18.609,18.601,22.74]
[1688263307730,22.732,18.609,18.599,55.0]
[1688263307731,22.732,18.609,18.6,22.741]
[1688263307928,22.732,18.609,18.599,77.742]
[1688263311632,22.732,18.609,18.599,55.0]
[1688263311822,22.732,18.609,18.592,20.0]
[1688263312135,30.16990906,18.609,18.592,20.0]
[1688263312314,30.16990906,18.609,18.594,22.749]
[1688263312514,127.06130906,18.609,18.594,22.749]
[1688263313137,127.06130906,18.609,18.595,55.0]
[1688263313443,127.06130906,18.609,18.595,77.747]
[1688263315236,119.6234,18.609,18.595,77.747]
[1688263315725,22.732,18.609,18.595,77.747]
[1688263316238,22.732,18.609,18.595,184.603]
[1688263317344,22.732,18.609,18.595,77.747]
[1688263320631,93.44,18.614,18.6,222.295]
[1688263320824,22.728,18.612,18.604,22.735]
[1688263321041,22.728,18.612,18.605,55.0]
[1688263321860,22.728,18.612,18.601,20.0]
[1688263322041,22.728,18.612,18.602,55.0]
[1688263322232,22.728,18.612,18.601,42.739]
[1688263323531,22.728,18.612,18.602,55.0]
[1688263323727,22.728,18.612,18.604,22.735]
[1688263324141,22.728,18.612,18.602,77.738]
[1688263327545,116.166,18.614,18.602,77.738]
[1688263328152,22.726,18.614,18.602,77.738]
[1688263332652,22.726,18.614,18.602,22.738]
[1688263332653,81.23,18.614,18.602,22.738]
[1688263334057,80.73,18.614,18.602,22.738]
[1688263336159,80.73,18.614,18.594,133.94707963]
[1688263336160,88.12505896,18.614,18.594,106.862]
[1688263336459,269.9835,18.62,18.599,22.742]
[1688263336460,22.731,18.609,18.599,22.742]
[1688263337561,22.731,18.609,18.599,22.242]
[1688263338153,22.731,18.609,18.602,22.738]
[1688263340461,22.731,18.609,18.601,22.74]
[1688263340751,22.731,18.609,18.602,55.0]
[1688263341139,22.731,18.609,18.604,22.736]
[1688263341347,22.731,18.609,18.602,55.0]
[1688263343359,22.731,18.609,18.593,58.569]
[1688263343660,22.731,18.609,18.6,22.741]
[1688263344542,22.731,18.609,18.601,55.0]
[1688263344755,22.731,18.609,18.601,77.74]
[1688263345255,58.517,18.61,18.601,77.74]
[1688263345256,22.729,18.61,18.601,77.74]
[1688263345447,22.729,18.61,18.602,20.0]
[1688263345650,22.729,18.61,18.603,77.737]
[1688263346657,22.729,18.61,18.603,22.737]
[1688263346864,22.728,18.612,18.603,22.737]
[1688263347064,22.728,18.612,18.604,55.0]
[1688263347364,22.728,18.612,18.606,22.734]
[1688263348365,22.725,18.614,18.606,22.734]
[1688263348550,22.725,18.614,18.607,55.0]
[1688263348750,22.725,18.614,18.608,22.731]
[1688263350466,22.725,18.614,18.607,55.0]
[1688263350762,22.725,18.614,18.607,22.732]
[1688263351763,58.493,18.618,18.607,22.732]
[1688263351764,22.723,18.615,18.607,22.732]
[1688263352064,22.723,18.615,18.608,55.0]
[1688263352267,22.723,18.615,18.61,22.729]
[1688263353657,22.722,18.616,18.61,22.729]
[1688263353868,7.39505896,18.619,18.61,22.729]
[1688263354063,22.724,18.615,18.609,22.73]
[1688263357451,7.39505896,18.619,18.609,22.73]
[1688263357657,22.721,18.617,18.609,22.73]
[1688263360269,7.39505896,18.619,18.608,55.0]
[1688263360453,22.721,18.617,18.609,22.73]
[1688263361457,22.719,18.619,18.609,22.73]
[1688263361656,199.337,18.63,18.61,55.0]
[1688263361971,22.714,18.623,18.616,22.722]
[1688263362147,22.712,18.624,18.616,22.722]
[1688263364573,22.712,18.624,18.617,55.0]
[1688263364865,22.712,18.624,18.618,22.718]
[1688263366974,22.711,18.626,18.618,22.718]
[1688263367168,104.53175896,18.629,18.618,22.718]
[1688263367169,97.1367,18.629,18.618,22.718]
[1688263367381,22.707,18.629,18.623,22.713]
[1688263369170,22.705,18.631,18.623,22.713]
[1688263371661,22.705,18.631,18.617,55.0]
[1688263371860,22.705,18.631,18.616,55.0]
[1688263372076,136.75005896,18.631,18.617,22.721]
[1688263372762,230.72105896,18.631,18.617,22.721]
[1688263373572,230.72105896,18.631,18.612,106.759]
[1688263373573,116.676,18.631,18.62,22.716]
[1688263373882,116.676,18.631,18.618,55.0]
[1688263373883,116.676,18.631,18.622,22.714]
[1688263374464,116.676,18.631,18.623,55.0]
[1688263374675,22.702,18.633,18.623,77.712]
[1688263375470,22.698,18.636,18.623,77.712]
[1688263375782,22.698,18.636,18.623,88.54919922]
[1688263376288,22.696,18.637,18.623,88.54919922]
[1688263376975,22.696,18.637,18.627,22.707]
[1688263377177,22.696,18.637,18.63,22.704]
[1688263377590,7.39505896,18.646,18.631,55.0]
[1688263377767,30.08105896,18.646,18.635,22.698]
[1688263378168,22.686,18.646,18.636,55.0]
[1688263378376,22.686,18.646,18.639,22.694]
[1688263378576,22.678,18.653,18.64,55.0]
[1688263378884,22.678,18.653,18.641,20.0]
[1688263379186,22.678,18.653,18.642,55.0]
[1688263379387,22.678,18.653,18.642,77.689]
[1688263379884,22.676,18.654,18.642,77.689]
[1688263380189,96.0398,18.659,18.642,77.689]
[1688263380190,22.673,18.657,18.642,77.689]
[1688263380373,96.0398,18.659,18.642,77.689]
[1688263380574,122.97671271,18.659,18.642,77.689]
[1688263380972,26.93691271,18.659,18.642,77.689]
[1688263381290,34.02,18.66,18.642,77.689]
[1688263381590,22.674,18.656,18.642,77.689]
[1688263382088,22.674,18.656,18.642,22.689]
[1688263382276,22.674,18.656,18.643,55.0]
[1688263382478,22.674,18.656,18.646,22.684]
[1688263382781,22.679,18.652,18.637,165.041]
[1688263382980,22.679,18.652,18.641,22.691]
[1688263383877,22.677,18.654,18.642,55.0]
[1688263384188,22.679,18.656,18.645,22.686]
[1688263384372,22.678,18.653,18.647,22.683]
[1688263384569,22.678,18.653,18.642,55.0]
[1688263385889,22.678,18.653,18.646,22.685]
[1688263389491,26.63167864,18.66,18.647,55.0]
[1688263389685,22.67,18.659,18.65,22.68]
[1688263391185,22.67,18.659,18.653,22.677]
[1688263391691,22.67,18.659,18.651,22.678]
[1688263394280,22.67,18.659,18.647,22.683]
[1688263394592,22.67,18.659,18.642,58.415]
[1688263394593,22.678,18.653,18.642,22.689]
[1688263394986,20.0,18.652,18.642,22.689]
[1688263395196,61.26524106,18.66,18.642,22.689]
[1688263395499,75.93975056,18.659,18.642,22.689]
[1688263395904,75.93975056,18.659,18.643,55.0]
[1688263396197,22.676,18.654,18.647,22.684]
[1688263396382,22.676,18.654,18.643,55.0]
[1688263396582,22.676,18.654,18.642,55.0]
[1688263397882,22.676,18.654,18.646,22.685]
[1688263398094,22.676,18.654,18.647,55.0]
[1688263398291,22.676,18.654,18.648,22.682]
[1688263398480,22.676,18.654,18.649,55.0]
[1688263398683,22.676,18.654,18.649,77.681]
[1688263401701,22.676,18.654,18.647,22.684]
[1688263402084,22.676,18.654,18.635,164.983]
[1688263402403,20.0,18.653,18.641,22.69]
[1688263402696,22.681,18.65,18.641,22.69]
[1688263404997,22.681,18.65,18.631,93.7983]
[1688263405306,15.00873829,18.649,18.632,20.0]
[1688263405496,57.13271328,18.654,18.632,42.702]
[1688263405701,57.13271328,18.654,18.633,4.35544216]
[1688263405702,81.098,18.644,18.633,4.35544216]
[1688263405994,81.098,18.644,18.627,3.0]
[1688263406201,81.098,18.644,18.627,25.708]
[1688263406399,34.26,18.64,18.618,22.709]
[1688263406599,34.26,18.64,18.617,3.0]
[1688263406600,187.776,18.634,18.62,2.36495589]
[1688263406786,187.776,18.634,18.619,22.717]
[1688263407800,20.0,18.633,18.619,22.717]
[1688263408105,22.706,18.629,18.619,22.717]
[1688263408584,22.706,18.629,18.617,3.0]
[1688263408585,22.706,18.629,18.622,22.714]
[1688263410506,26.27395425,18.644,18.622,22.714]
[1688263410507,22.704,18.631,18.627,3.0]
[1688263410803,58.432,18.637,18.627,25.708]
[1688263410993,22.703,18.632,18.627,3.0]
[1688263412799,81.14,18.638,18.627,25.708]
[1688263413593,58.429,18.638,18.627,25.708]
[1688263413794,22.699,18.635,18.627,25.708]
[1688263416204,85.73554634,18.641,18.627,25.708]
[1688263416404,22.694,18.64,18.628,55.0]
[1688263416705,22.694,18.64,18.631,22.703]
[1688263417005,22.694,18.64,18.633,22.701]
[1688263417205,22.694,18.64,18.632,77.701]
[1688263418201,58.404,18.646,18.632,77.701]
[1688263418403,20.0,18.645,18.632,77.701]
[1688263419197,22.693,18.641,18.632,77.701]
[1688263419701,352.99,18.66,18.637,25.696]
[1688263419702,22.69,18.643,18.637,25.696]
[1688263420487,22.69,18.643,18.637,3.0]
[1688263423209,22.69,18.643,18.635,22.698]
[1688263423711,22.69,18.643,18.637,3.0]
[1688263424611,22.69,18.643,18.637,25.696]
[1688263428209,22.69,18.643,18.63,92.2698]
[1688263428395,20.0,18.642,18.627,3.0]
[1688263428723,22.696,18.638,18.629,22.705]
[1688263429011,22.696,18.638,18.627,25.707]
[1688263431008,22.696,18.638,18.628,55.0]
[1688263431209,22.696,18.638,18.628,77.707]
[1688263431914,22.696,18.638,18.628,55.0]
[1688263439722,22.696,18.638,18.628,77.706]
[1688263440814,22.696,18.638,18.628,55.0]
[1688263441125,22.696,18.638,18.628,77.707]
[1688263441622,22.696,18.638,18.628,55.0]
[1688263441811,22.696,18.638,18.627,3.0]
[1688263441812,22.696,18.638,18.627,58.0]
[1688263442721,22.696,18.638,18.621,92.569]
[1688263442921,55.0,18.637,18.622,20.0]
[1688263443115,81.147,18.633,18.622,42.714]
[1688263443902,81.147,18.633,18.627,3.0]
[1688263444522,22.702,18.633,18.627,3.0]
[1688263444903,22.702,18.633,18.627,25.708]
[1688263445105,22.702,18.633,18.627,3.0]
[1688263446015,106.602,18.64,18.627,3.0]
[1688263446219,22.702,18.633,18.627,25.708]
[1688263447006,22.702,18.633,18.621,126.704]
[1688263447007,22.702,18.633,18.621,20.0]
[1688263447208,22.702,18.633,18.622,55.0]
[1688263449020,22.702,18.633,18.622,77.714]
[1688263449434,22.702,18.633,18.622,22.714]
[1688263449635,22.702,18.633,18.616,106.733]
[1688263449636,22.702,18.633,18.617,3.0]
[1688263449935,114.01705896,18.636,18.62,22.716]
[1688263449936,22.707,18.629,18.62,22.716]
[1688263450232,22.707,18.629,18.621,55.0]
[1688263455121,22.707,18.629,18.62,55.0]
[1688263455813,22.707,18.629,18.619,55.0]
[1688263456233,22.707,18.629,18.619,77.718]
[1688263457126,20.0,18.632,18.619,136.206]
[1688263457333,22.706,18.629,18.619,77.718]
[1688263459432,27.13703513,18.636,18.619,77.718]
[1688263459433,147.78166177,18.641,18.62,34.03]
[1688263459639,22.696,18.637,18.627,3.0]
[1688263459819,22.696,18.637,18.629,22.705]
[1688263460136,22.696,18.637,18.627,3.0]
[1688263462234,22.696,18.637,18.626,55.0]
[1688263462619,22.696,18.637,18.627,3.0]
[1688263467319,22.696,18.637,18.627,25.708]
[1688263468215,22.696,18.637,18.627,3.0]
[1688263469239,30.09105896,18.637,18.627,3.0]
[1688263469627,22.696,18.637,18.627,3.0]
[1688263470942,22.696,18.637,18.627,25.708]
[1688263471137,22.696,18.637,18.628,55.0]
[1688263471347,22.696,18.637,18.628,77.707]
[1688263471526,22.696,18.637,18.628,55.0]
[1688263472542,22.696,18.637,18.628,77.707]
[1688263473638,22.696,18.637,18.628,55.0]
[1688263474952,22.696,18.637,18.629,22.705]
[1688263475142,22.696,18.637,18.628,77.707]
[1688263475540,22.696,18.637,18.628,55.0]
[1688263477033,22.696,18.637,18.627,58.0]
[1688263477549,22.696,18.637,18.627,80.708]
[1688263481155,81.128,18.637,18.627,58.0]
[1688263481450,81.128,18.637,18.627,77.708]
[1688263482055,22.696,18.637,18.627,77.708]
[1688263483056,22.696,18.637,18.628,3.0]
[1688263483349,22.696,18.637,18.628,25.707]
[1688263483558,22.696,18.637,18.629,55.0]
[1688263484636,22.696,18.637,18.629,77.706]
[1688263488369,58.414,18.643,18.629,77.706]
[1688263488577,20.0,18.642,18.629,77.706]
[1688263489171,22.695,18.638,18.629,77.706]
[1688263500177,81.124,18.638,18.629,55.0]
[1688263500383,81.124,18.638,18.628,58.0]
[1688263500675,22.695,18.638,18.629,22.706]
[1688263500879,22.695,18.638,18.63,55.0]
[1688263501880,22.695,18.638,18.63,77.705]
[1688263502082,22.695,18.638,18.63,55.0]
[1688263502291,22.695,18.638,18.62,198.2696477]
[1688263502292,30.09005896,18.638,18.62,34.52]
[1688263502468,81.149,18.633,18.621,20.0]
[1688263503476,81.149,18.633,18.618,3.0]
[1688263503684,20.0,18.632,18.618,3.0]
[1688263503982,81.168,18.628,18.618,3.0]
[1688263504384,22.707,18.628,18.618,3.0]
[1688263505076,129.374,18.628,18.618,3.0]
[1688263505384,136.76905896,18.628,18.618,3.0]
[1688263506281,22.707,18.628,18.618,3.0]
[1688263506483,22.707,18.628,18.618,25.719]
[1688263510874,22.707,18.628,18.618,3.0]
[1688263514298,58.459,18.629,18.618,3.0]
[1688263514299,22.706,18.629,18.618,25.719]
[1688263514488,106.626,18.636,18.619,55.0]
[1688263514680,22.716,18.637,18.624,22.712]
[1688263514681,22.701,18.634,18.624,22.712]
[1688263515007,81.149,18.637,18.625,77.711]
[1688263515008,22.704,18.631,18.625,77.711]
[1688263515993,22.704,18.631,18.625,55.0]
[1688263521298,22.704,18.631,18.624,55.0]
[1688263522000,22.704,18.631,18.619,120.1271]
[1688263522195,129.354,18.631,18.619,97.4101]
[1688263522581,136.84205231,18.631,18.619,97.4101]
[1688263522781,0.65170747,18.63,18.618,3.0]
[1688263522998,81.174,18.627,18.618,3.0]
[1688263528404,81.174,18.627,18.618,25.719]
[1688263528585,81.174,18.627,18.619,55.0]
[1688263530906,187.847,18.627,18.618,3.0]
[1688263533891,187.847,18.627,18.614,22.723]
[1688263534094,75.0,18.626,18.608,25.731]
[1688263534410,81.199,18.621,18.608,25.731]
[1688263534992,88.68705231,18.621,18.608,25.731]
[1688263535720,147.22405231,18.621,18.608,25.731]
[1688263536502,22.716,18.621,18.609,55.0]
[1688263536814,22.716,18.621,18.612,22.726]
[1688263537194,22.716,18.621,18.609,55.0]
[1688263537393,22.716,18.621,18.608,58.0]
[1688263537805,22.716,18.621,18.608,80.731]
[1688263541003,22.716,18.621,18.608,80.732]
[1688263541509,30.20405231,18.621,18.608,80.732]
[1688263541708,30.20405231,18.621,18.608,58.0]
[1688263542016,30.20405231,18.621,18.608,3.0]
[1688263542017,96.47805231,18.62,18.608,3.0]
[1688263542210,187.95,18.617,18.608,3.0]
[1688263542913,187.95,18.617,18.602,20.0]
[1688263543118,187.95,18.617,18.608,3.0]
[1688263543709,81.217,18.617,18.608,3.0]
[1688263544317,81.217,18.617,18.608,25.731]
[1688263544712,22.721,18.617,18.608,25.731]
[1688263545307,22.721,18.617,18.608,3.0]
[1688263547008,55.0,18.616,18.602,22.738]
[1688263547209,81.238,18.612,18.601,22.74]
[1688263547415,81.238,18.612,18.602,20.0]
[1688263547631,81.238,18.612,18.602,42.739]
[1688263549610,22.727,18.612,18.602,42.739]
[1688263550112,106.719,18.619,18.608,3.0]
[1688263550113,58.491,18.618,18.608,3.0]
[1688263550320,22.722,18.616,18.609,22.73]
[1688263550509,178.68098687,18.621,18.609,22.73]
[1688263550703,22.72,18.618,18.609,22.73]
[1688263552504,22.72,18.618,18.608,22.732]
[1688263552712,22.72,18.618,18.608,25.732]
[1688263553831,58.47,18.625,18.61,34.32]
[1688263554125,22.713,18.624,18.618,3.0]
[1688263556115,22.713,18.624,18.616,22.722]
[1688263556610,22.713,18.624,18.618,3.0]
[1688263557925,22.711,18.626,18.618,25.719]
[1688263558125,22.711,18.626,18.619,55.0]
[1688263558321,22.706,18.63,18.621,22.716]
[1688263558523,22.703,18.632,18.628,3.0]
[1688263560243,81.15,18.632,18.628,3.0]
[1688263560416,22.703,18.632,18.628,3.0]
[1688263562822,22.701,18.634,18.628,25.707]